[Event "Polish Youth 1st League 2022"]
[Site "Lublin"]
[Date "2022.07.03"]
[Round "9.2"]
[White "Nowak, Filip"]
[Black "Kubik, Rafal"]
[Result "1-0"]
[ECO "B76"]
[WhiteElo "1819"]
[BlackElo "1827"]
[Annotator "NA RC"]
[PlyCount "65"]
[EventDate "2022.06.24"]
[EventType "team-tourn"]
[EventCountry "POL"]
[SourceTitle "playchess.com"]
[Source "ChessBase"]
[SourceQuality "1"]
[TimeControl "40/5400+30:1800+30"]

1. e4 {[%emt 0:00:18]} c5 {[%emt 0:00:27]} 2. Nf3 {[%emt 0:00:14]} d6 {[%emt 0:00:32]} 3. d4 {[%emt 0:00:16]} cxd4 {[%emt 0:00:16]} 4. Nxd4 {[%emt 0:00:05]} Nf6 {[%emt 0:00:14]} 5. Nc3 {[%emt 0:00:07]} g6 {[%emt 0:00:24]} 6. Be3 {[%emt 0:00:07]} Bg7 {[%emt 0:00:20]} 7. f3 {[%emt 0:00:13]} O-O {[%emt 0:00:18]} 8. Qd2 {[%emt 0:00:09]} Nc6 {[%emt 0:00:27]} 9. O-O-O {[%emt 0:00:16]} d5 {[%emt 0:00:19]} 10. exd5 {[%emt 0:00:10]} Nxd5 {[%emt 0:00:09]} 11. Nxc6 {[%emt 0:00:25]} bxc6 {[%emt 0:00:07]} 12. Bd4 {[%emt 0:00:12]} e5 {[%emt 0:00:24]} 13. Bc5 {[%emt 0:00:05]} Re8 {[%emt 0:00:19]} 14. Bc4 {[%emt 0:14:04]} Be6 {[%emt 0:00:39]} 15. Ne4 {[%emt 0:07:18]} Qc7 {[%emt 0:02:51]} 16. h4 {[%emt 0:00:37]} Red8 {[%emt 0:21:31]} 17. Qf2 {[%emt 0:13:01]} Bh6+ {[%emt 0:09:27]} 18. Kb1 {[%emt 0:00:13]} Nc3+ {[%emt 0:03:48]} 19. Nxc3 {[%emt 0:00:02]} Bxc4 {[%emt 0:00:10]} 20. h5 {[%emt 0:06:19]} g5 {[%emt 0:02:20]} 21. Ne4 {[%emt 0:01:47]} f5 {[%emt 0:08:34]} 22. Nd6 {[%emt 0:01:52]} Bd5 {[%emt 0:05:34]} 23. Nxf5 {[%emt 0:03:50]} Bxa2+ {[%emt 0:02:45]} 24. Ka1 {[%emt 0:06:14]} Bf8 {[%emt 0:00:36]} 25. Qe3 {[%emt 0:03:03]} Bxc5 {[%emt 0:06:23]} 26. Qxg5+ {[%emt 0:00:07]} Kf8 {[%emt 0:00:40]} 27. Kxa2 {[%emt 0:00:39]} Rab8 {[%emt 0:01:17]} 28. Qh6+ {[%emt 0:03:30]} Kg8 {[%emt 0:03:24]} 29. Qe6+ {[%emt 0:07:59]} Kf8 {[%emt 0:00:12]} 30. Rxd8+ {[%emt 0:04:26]} Rxd8 31. Kb1 {[%emt 0:01:24]} Bd4 {[%emt 0:09:10]} 32. Qf6+ {[%emt 0:00:19]} Ke8 {[%emt 0:01:36]} 33. Ng7+ {[%emt 0:00:26]} 1-0

[Event "Polish Youth 1st League 2022"]
[Site "Lublin"]
[Date "2022.07.03"]
[Round "9.3"]
[White "Karwot, Marek"]
[Black "Grot, Blazej"]
[Result "1/2-1/2"]
[ECO "B22"]
[WhiteElo "1454"]
[BlackElo "1819"]
[Annotator "NA RC"]
[PlyCount "74"]
[EventDate "2022.06.24"]
[EventType "team-tourn"]
[EventCountry "POL"]
[SourceTitle "playchess.com"]
[Source "ChessBase"]
[SourceQuality "1"]
[TimeControl "40/5400+30:1800+30"]

1. e4 {[%emt 0:00:04]} c5 {[%emt 0:00:05]} 2. c3 {[%emt 0:00:06]} Nf6 {[%emt 0:00:06]} 3. e5 {[%emt 0:00:06]} Nd5 {[%emt 0:00:11]} 4. Nf3 {[%emt 0:00:11]} e6 {[%emt 0:00:08]} 5. d4 {[%emt 0:00:08]} cxd4 {[%emt 0:00:04]} 6. cxd4 {[%emt 0:00:11]} Nc6 {[%emt 0:00:26]} 7. Bc4 {[%emt 0:02:43]} d6 {[%emt 0:00:45]} 8. O-O {[%emt 0:00:36]} Be7 {[%emt 0:01:31]} 9. Qe2 {[%emt 0:01:12]} Na5 {[%emt 0:03:56]} 10. Bd3 {[%emt 0:04:10]} Nb4 {[%emt 0:06:33]} 11. Be4 {[%emt 0:04:42]} d5 {[%emt 0:00:10]} 12. Bd3 {[%emt 0:00:31]} Nxd3 {[%emt 0:01:53]} 13. Qxd3 {[%emt 0:00:14]} Bd7 {[%emt 0:01:02]} 14. b3 {[%emt 0:09:26]} Qb6 {[%emt 0:01:31]} 15. Rd1 {[%emt 0:02:45]} Nc6 {[%emt 0:02:58]} 16. Bg5 {[%emt 0:04:13]} Bxg5 {[%emt 0:01:27]} 17. Nxg5 {[%emt 0:00:14]} h6 {[%emt 0:00:07]} 18. Nf3 {[%emt 0:00:45]} O-O {[%emt 0:05:31]} 19. Nc3 {[%emt 0:05:47]} Ne7 {[%emt 0:04:47]} 20. Rdc1 {[%emt 0:05:46]} Rac8 {[%emt 0:00:50]} 21. Nd1 {[%emt 0:06:05]} Rc6 {[%emt 0:04:13]} 22. Rc3 {[%emt 0:05:40]} Rxc3 {[%emt 0:03:12]} 23. Nxc3 {[%emt 0:01:05]} Rc8 {[%emt 0:03:27]} 24. Rc1 {[%emt 0:02:03]} Qa5 {[%emt 0:00:48]} 25. Qd2 {[%emt 0:02:41]} Nc6 {[%emt 0:05:27]} 26. Ne2 {[%emt 0:04:50]} Qa3 {[%emt 0:03:06]} 27. h3 {[%emt 0:05:51]} a5 {[%emt 0:03:36]} 28. Ne1 {[%emt 0:03:17]} Qb4 {[%emt 0:01:50]} 29. Qxb4 {[%emt 0:05:53]} Nxb4 {[%emt 0:02:19]} 30. Rxc8+ {[%emt 0:01:21]} Bxc8 {[%emt 0:00:03]} 31. a4 {[%emt 0:02:14]} b6 {[%emt 0:01:36]} 32. Nc3 {[%emt 0:02:16]} Ba6 {[%emt 0:03:14]} 33. f4 {[%emt 0:03:21]} Nc6 {[%emt 0:03:06]} 34. Nf3 {[%emt 0:01:02]} Bd3 {[%emt 0:00:37]} 35. Ne1 {[%emt 0:03:16]} Ba6 {[%emt 0:05:14]} 36. Nf3 {[%emt 0:00:12]} Nb4 {[%emt 0:00:38]} 37. Ne1 {[%emt 0:01:20]} Nc6 {[%emt 0:06:04]} 1/2-1/2

[Event "Polish Youth 1st League 2022"]
[Site "Lublin"]
[Date "2022.07.03"]
[Round "9.4"]
[White "Rozanski, Mateusz"]
[Black "Niesporek, Franciszek"]
[Result "1-0"]
[ECO "B72"]
[WhiteElo "1720"]
[BlackElo "1332"]
[Annotator "NA RC"]
[PlyCount "67"]
[EventDate "2022.06.24"]
[EventType "team-tourn"]
[EventCountry "POL"]
[SourceTitle "playchess.com"]
[Source "ChessBase"]
[SourceQuality "1"]
[TimeControl "40/5400+30:1800+30"]

1. e4 {[%emt 0:01:28]} c5 {[%emt 0:00:10]} 2. Nf3 {[%emt 0:00:23]} d6 {[%emt 0:00:07]} 3. d4 {[%emt 0:00:22]} cxd4 {[%emt 0:00:10]} 4. Nxd4 {[%emt 0:00:48]} Nf6 {[%emt 0:00:09]} 5. Nc3 {[%emt 0:00:29]} g6 {[%emt 0:00:09]} 6. Be3 {[%emt 0:00:14]} Bg7 {[%emt 0:00:07]} 7. Be2 {[%emt 0:00:08]} Nc6 {[%emt 0:00:36]} 8. Qd2 {[%emt 0:00:24]} O-O {[%emt 0:00:37]} 9. f3 {[%emt 0:01:26]} Nxd4 {[%emt 0:04:13]} 10. Bxd4 {[%emt 0:00:06]} Be6 {[%emt 0:00:13]} 11. O-O-O {[%emt 0:00:22]} Qa5 {[%emt 0:01:36]} 12. a3 {[%emt 0:01:36]} Rfc8 {[%emt 0:03:12]} 13. Kb1 {[%emt 0:00:13]} Qd8 {[%emt 0:10:42]} 14. g4 {[%emt 0:00:19]} a6 {[%emt 0:08:45]} 15. h4 {[%emt 0:01:30]} Bc4 {[%emt 0:09:00]} 16. g5 {[%emt 0:00:55]} Nh5 {[%emt 0:01:16]} 17. Bxg7 {[%emt 0:00:10]} Nxg7 {[%emt 0:00:08]} 18. f4 {[%emt 0:01:36]} Bxe2 {[%emt 0:05:27]} 19. Nxe2 {[%emt 0:00:11]} Nh5 {[%emt 0:01:54]} 20. f5 {[%emt 0:01:46]} Qc7 {[%emt 0:04:33]} 21. Rhf1 {[%emt 0:02:11]} Qc4 {[%emt 0:03:38]} 22. Nc3 {[%emt 0:01:32]} Re8 {[%emt 0:18:38]} 23. Qf2 {[%emt 0:03:13]} Rf8 {[%emt 0:05:03]} 24. Nd5 {[%emt 0:01:49]} Rae8 {[%emt 0:01:04]} 25. Rd4 {[%emt 0:02:36]} Qc5 {[%emt 0:01:31]} 26. b4 {[%emt 0:00:09]} Qc8 {[%emt 0:02:38]} 27. f6 {[%emt 0:00:29]} exf6 {[%emt 0:01:05]} 28. Nxf6+ {[%emt 0:00:22]} Nxf6 {[%emt 0:00:11]} 29. gxf6 {[%emt 0:00:04]} Qg4 {[%emt 0:00:44]} 30. Rg1 {[%emt 0:00:14]} Qh5 {[%emt 0:00:26]} 31. Rg5 {[%emt 0:00:05]} Qh6 {[%emt 0:00:30]} 32. Qf4 {[%emt 0:00:31]} Re5 {[%emt 0:00:42]} 33. Rd5 {[%emt 0:00:27]} Rfe8 {[%emt 0:00:31]} 34. Rgxe5 {[%emt 0:00:08]} 1-0

[Event "Polish Youth 1st League 2022"]
[Site "Lublin"]
[Date "2022.07.03"]
[Round "9.5"]
[White "Bugaj, Hanna"]
[Black "Krzyzosiak, Marta"]
[Result "1/2-1/2"]
[ECO "A01"]
[WhiteElo "1779"]
[BlackElo "1666"]
[Annotator "NA RC"]
[PlyCount "115"]
[EventDate "2022.06.24"]
[EventType "team-tourn"]
[EventCountry "POL"]
[SourceTitle "playchess.com"]
[Source "ChessBase"]
[SourceQuality "1"]
[TimeControl "40/5400+30:1800+30"]

1. b3 {[%emt 0:00:04]} Nf6 {[%emt 0:00:07]} 2. Bb2 {[%emt 0:00:10]} g6 {[%emt 0:00:09]} 3. Nf3 {[%emt 0:00:11]} Bg7 {[%emt 0:00:33]} 4. g3 {[%emt 0:00:16]} O-O {[%emt 0:00:55]} 5. Bg2 {[%emt 0:00:20]} d6 {[%emt 0:01:56]} 6. d4 {[%emt 0:00:13]} Nbd7 {[%emt 0:02:52]} 7. O-O {[%emt 0:00:16]} c6 {[%emt 0:02:53]} 8. c4 {[%emt 0:08:56]} Qc7 {[%emt 0:05:40]} 9. Qc2 {[%emt 0:04:15]} e5 {[%emt 0:04:17]} 10. dxe5 {[%emt 0:04:29]} Nxe5 {[%emt 0:04:30]} 11. Nxe5 {[%emt 0:00:50]} dxe5 {[%emt 0:00:09]} 12. e4 {[%emt 0:02:22]} Re8 {[%emt 0:10:18]} 13. c5 {[%emt 0:05:01]} b6 {[%emt 0:05:40]} 14. Nd2 {[%emt 0:06:00]} Ba6 {[%emt 0:09:47]} 15. Rfd1 {[%emt 0:07:52]} Nd7 {[%emt 0:16:48]} 16. cxb6 {[%emt 0:19:32]} axb6 {[%emt 0:06:42]} 17. a4 {[%emt 0:04:00]} c5 {[%emt 0:02:59]} 18. Nc4 {[%emt 0:04:12]} Bxc4 {[%emt 0:03:43]} 19. Qxc4 {[%emt 0:00:55]} Nf8 {[%emt 0:03:33]} 20. Bh3 {[%emt 0:01:18]} Ne6 {[%emt 0:03:20]} 21. Bxe6 {[%emt 0:00:11]} Rxe6 {[%emt 0:00:09]} 22. Qd5 {[%emt 0:04:31]} Ree8 {[%emt 0:05:09]} 23. Qd7 {[%emt 0:01:17]} Qxd7 {[%emt 0:01:18]} 24. Rxd7 {[%emt 0:00:06]} Red8 {[%emt 0:00:28]} 25. Rad1 {[%emt 0:00:28]} Rxd7 {[%emt 0:00:15]} 26. Rxd7 {[%emt 0:00:06]} Rb8 27. Kf1 {[%emt 0:01:47]} f6 {[%emt 0:03:10]} 28. Ba3 {[%emt 0:17:20]} Bf8 {[%emt 0:03:03]} 29. Rd3 {[%emt 0:02:13]} b5 {[%emt 0:00:54]} 30. axb5 {[%emt 0:00:23]} Rxb5 {[%emt 0:00:17]} 31. Rc3 {[%emt 0:00:31]} Ra5 {[%emt 0:01:31]} 32. Bc1 {[%emt 0:00:33]} Kf7 {[%emt 0:00:44]} 33. Be3 {[%emt 0:02:04]} Ke6 {[%emt 0:00:41]} 34. Ke2 {[%emt 0:00:18]} Rb5 {[%emt 0:00:34]} 35. Kd3 {[%emt 0:01:00]} Be7 {[%emt 0:01:22]} 36. Kc2 {[%emt 0:00:23]} Bd6 {[%emt 0:00:37]} 37. Rc4 {[%emt 0:00:23]} Ra5 {[%emt 0:01:03]} 38. Kc3 {[%emt 0:01:29]} Rb5 {[%emt 0:00:08]} 39. Ra4 {[%emt 0:00:20]} Be7 {[%emt 0:00:48]} 40. Kc4 {[%emt 0:00:00]} Rb6 {[%emt 0:00:00]} 41. f3 {[%emt 0:14:01]} h5 {[%emt 0:05:32]} 42. Ra5 {[%emt 0:01:55]} Rb4+ {[%emt 0:00:27]} 43. Kc3 {[%emt 0:00:11]} f5 {[%emt 0:09:42]} 44. exf5+ {[%emt 0:03:27]} gxf5 {[%emt 0:00:21]} 45. Bxc5 {[%emt 0:00:33]} Bxc5 {[%emt 0:01:10]} 46. Rxc5 {[%emt 0:00:06]} Rb6 {[%emt 0:03:04]} 47. b4 {[%emt 0:00:39]} Kd6 {[%emt 0:01:45]} 48. f4 {[%emt 0:04:17]} exf4 {[%emt 0:00:56]} 49. gxf4 {[%emt 0:00:06]} Ke6 {[%emt 0:00:42]} 50. b5 {[%emt 0:00:20]} Rb8 {[%emt 0:01:23]} 51. Kc4 {[%emt 0:01:06]} Ra8 {[%emt 0:01:51]} 52. Rc6+ {[%emt 0:04:52]} Kd7 {[%emt 0:01:48]} 53. Rh6 {[%emt 0:05:08]} Ra4+ {[%emt 0:00:25]} 54. Kc5 {[%emt 0:00:09]} Rxf4 {[%emt 0:01:41]} 55. Rxh5 {[%emt 0:00:08]} Rf1 {[%emt 0:00:53]} 56. Kb6 {[%emt 0:00:36]} f4 {[%emt 0:00:32]} 57. Rf5 {[%emt 0:00:34]} Ke6 {[%emt 0:03:49]} 58. Rh5 {[%emt 0:01:31]} 1/2-1/2

[Event "Polish Youth 1st League 2022"]
[Site "Lublin"]
[Date "2022.07.03"]
[Round "9.6"]
[White "Wieczorek, Maja"]
[Black "Sprzeczka, Emilia"]
[Result "0-1"]
[ECO "A04"]
[WhiteElo "1316"]
[BlackElo "1692"]
[Annotator "NA RC"]
[PlyCount "108"]
[EventDate "2022.06.24"]
[EventType "team-tourn"]
[EventCountry "POL"]
[SourceTitle "playchess.com"]
[Source "ChessBase"]
[SourceQuality "1"]
[TimeControl "40/5400+30:1800+30"]

1. Nf3 {[%emt 0:00:01]} b6 {[%emt 0:00:13]} 2. g3 {[%emt 0:00:19]} Bb7 {[%emt 0:00:07]} 3. Bg2 {[%emt 0:00:05]} e6 {[%emt 0:00:28]} 4. O-O {[%emt 0:00:59]} d5 {[%emt 0:00:46]} 5. d3 {[%emt 0:00:32]} Nf6 {[%emt 0:00:42]} 6. a4 {[%emt 0:00:42]} a5 {[%emt 0:11:23]} 7. Na3 {[%emt 0:01:33]} Be7 {[%emt 0:05:26]} 8. Nd2 {[%emt 0:03:25]} c5 {[%emt 0:10:32]} 9. e4 {[%emt 0:01:46]} Bc6 {[%emt 0:10:50]} 10. b3 {[%emt 0:02:31]} Nbd7 {[%emt 0:03:01]} 11. f4 {[%emt 0:01:07]} dxe4 {[%emt 0:03:09]} 12. dxe4 {[%emt 0:00:22]} h5 {[%emt 0:02:59]} 13. h3 {[%emt 0:02:03]} Qc7 {[%emt 0:07:13]} 14. Bb2 {[%emt 0:02:50]} Qb7 {[%emt 0:03:30]} 15. Qe2 {[%emt 0:02:17]} Qa6 {[%emt 0:10:54]} 16. Qe1 {[%emt 0:08:02]} O-O-O {[%emt 0:04:55]} 17. Nac4 {[%emt 0:02:14]} Rdf8 {[%emt 0:06:24]} 18. Ne5 {[%emt 0:01:35]} Nxe5 {[%emt 0:00:39]} 19. Bxe5 {[%emt 0:00:14]} Qb7 {[%emt 0:01:47]} 20. Rd1 {[%emt 0:03:21]} Rd8 {[%emt 0:01:45]} 21. Qe2 {[%emt 0:06:03]} Rhg8 {[%emt 0:03:20]} 22. Nc4 {[%emt 0:01:54]} Nxe4 {[%emt 0:02:19]} 23. Bxe4 {[%emt 0:00:26]} Bxe4 {[%emt 0:00:10]} 24. Nxb6+ {[%emt 0:00:12]} Qxb6 {[%emt 0:00:07]} 25. Qxe4 {[%emt 0:00:09]} Qb7 {[%emt 0:01:04]} 26. Qc4 {[%emt 0:02:38]} Qc6 {[%emt 0:02:45]} 27. b4 {[%emt 0:02:30]} axb4 {[%emt 0:00:42]} 28. a5 {[%emt 0:03:37]} Kb7 {[%emt 0:01:27]} 29. Ra1 {[%emt 0:02:03]} Rd2 {[%emt 0:01:32]} 30. Rf2 {[%emt 0:02:28]} Rgd8 {[%emt 0:01:10]} 31. Raf1 {[%emt 0:03:07]} Rxf2 {[%emt 0:01:14]} 32. Rxf2 {[%emt 0:00:13]} f6 {[%emt 0:00:57]} 33. Bb2 {[%emt 0:01:17]} Rd1+ {[%emt 0:00:55]} 34. Rf1 {[%emt 0:00:20]} Rxf1+ {[%emt 0:00:45]} 35. Qxf1 {[%emt 0:00:21]} c4 {[%emt 0:00:35]} 36. Bd4 {[%emt 0:01:21]} Qd5 {[%emt 0:00:34]} 37. Bf2 {[%emt 0:02:40]} Bc5 {[%emt 0:00:43]} 38. Bxc5 {[%emt 0:01:13]} Qxc5+ {[%emt 0:00:06]} 39. Kh2 {[%emt 0:00:34]} Ka6 {[%emt 0:00:53]} 40. Qg2 {[%emt 0:00:00]} Qd5 {[%emt 0:00:00]} 41. Qf2 {[%emt 0:02:51]} Qxa5 {[%emt 0:03:38]} 42. Qe2 {[%emt 0:02:07]} Qd5 {[%emt 0:00:48]} 43. Qe1 {[%emt 0:01:17]} c3 {[%emt 0:01:22]} 44. Qa1+ {[%emt 0:03:24]} Kb5 {[%emt 0:01:48]} 45. Qf1+ {[%emt 0:01:38]} Kc5 {[%emt 0:00:26]} 46. Qa6 {[%emt 0:03:11]} Qd2+ {[%emt 0:00:32]} 47. Kg1 {[%emt 0:00:57]} Qd1+ {[%emt 0:00:17]} 48. Kg2 {[%emt 0:00:28]} Qxc2+ {[%emt 0:00:10]} 49. Kf3 {[%emt 0:02:00]} Qd1+ {[%emt 0:00:58]} 50. Kg2 {[%emt 0:03:44]} c2 {[%emt 0:02:01]} 51. Qc8+ {[%emt 0:02:24]} Kd4 {[%emt 0:00:24]} 52. Qd7+ {[%emt 0:01:26]} Kc3 {[%emt 0:00:19]} 53. Qc6+ {[%emt 0:04:24]} Kb2 {[%emt 0:00:11]} 54. Qc4 {[%emt 0:00:51]} c1=Q {[%emt 0:00:19]} 0-1

[Event "Polish Youth 1st League 2022"]
[Site "Lublin"]
[Date "2022.07.03"]
[Round "9.7"]
[White "Wieczorek, Mikolaj"]
[Black "Szlosarczyk, Hubert"]
[Result "1-0"]
[ECO "C02"]
[WhiteElo "1942"]
[BlackElo "1650"]
[Annotator "NA RC"]
[PlyCount "53"]
[EventDate "2022.06.24"]
[EventType "team-tourn"]
[EventCountry "POL"]
[SourceTitle "playchess.com"]
[Source "ChessBase"]
[SourceQuality "1"]
[TimeControl "40/5400+30:1800+30"]

1. e4 {[%emt 0:00:09]} e6 {[%emt 0:00:39]} 2. d4 {[%emt 0:00:04]} d5 {[%emt 0:00:50]} 3. e5 {[%emt 0:00:05]} c5 {[%emt 0:00:49]} 4. c3 {[%emt 0:00:08]} Nc6 {[%emt 0:01:11]} 5. Nf3 {[%emt 0:00:39]} Bd7 {[%emt 0:01:35]} 6. Bd3 {[%emt 0:00:12]} Qc7 {[%emt 0:02:03]} 7. O-O {[%emt 0:00:22]} f6 {[%emt 0:02:32]} 8. Re1 {[%emt 0:09:27]} fxe5 {[%emt 0:06:24]} 9. Nxe5 {[%emt 0:00:32]} Nxe5 {[%emt 0:00:40]} 10. Bf4 {[%emt 0:00:52]} Nf6 {[%emt 0:15:08]} 11. Bxe5 {[%emt 0:00:52]} Bd6 {[%emt 0:02:20]} 12. Bxf6 {[%emt 0:00:47]} gxf6 {[%emt 0:00:02]} 13. Qh5+ {[%emt 0:00:05]} Ke7 {[%emt 0:06:15]} 14. Qxd5 {[%emt 0:10:59]} Bxh2+ {[%emt 0:10:03]} 15. Kf1 {[%emt 0:00:09]} c4 {[%emt 0:06:25]} 16. Bc2 $16 {[%emt 0:10:36]} ({Of course not} 16. Bxc4 $6 {[#]} Be5 $1 17. Qc5+ Qxc5 18. dxc5 Rhc8 $11) 16... Be5 {[%emt 0:06:58]} 17. Qf3 {[%emt 0:00:32]} Bd6 {[%emt 0:00:28]} 18. Nd2 {[%emt 0:00:56]} Raf8 {[%emt 0:02:13]} 19. b3 {[%emt 0:11:47]} b5 {[%emt 0:07:28]} 20. bxc4 {[%emt 0:02:26]} bxc4 {[%emt 0:00:12]} 21. Rab1 {[%emt 0:02:19]} Rb8 {[%emt 0:09:14]} 22. Ne4 {[%emt 0:02:07]} Rhf8 {[%emt 0:01:13]} 23. Rxb8 {[%emt 0:03:23]} Qxb8 {[%emt 0:01:09]} 24. Rb1 Qc7 {[%emt 0:00:56]} 25. Qh5 {[%emt 0:03:06]} Rf7 {[%emt 0:01:58]} 26. Rb7 {[%emt 0:07:30]} Qc8 {[%emt 0:04:29]} 27. Qxf7+ {[%emt 0:01:27]} 1-0

[Event "Polish Youth 1st League 2022"]
[Site "Lublin"]
[Date "2022.07.03"]
[Round "9.8"]
[White "Kozlowski, Franciszek"]
[Black "Halhoul, Adam"]
[Result "1/2-1/2"]
[ECO "D71"]
[WhiteElo "1607"]
[BlackElo "1675"]
[Annotator "NA RC"]
[PlyCount "83"]
[EventDate "2022.06.24"]
[EventType "team-tourn"]
[EventCountry "POL"]
[SourceTitle "playchess.com"]
[Source "ChessBase"]
[SourceQuality "1"]
[TimeControl "40/5400+30:1800+30"]

1. d4 Nf6 2. c4 g6 3. g3 Bg7 4. Bg2 O-O 5. Nf3 c5 6. e3 cxd4 7. exd4 d5 8. cxd5 Nxd5 9. O-O Nc6 10. Nc3 Bg4 11. h3 Bxf3 12. Bxf3 Nc7 13. d5 Nd4 14. Bg2 Rc8 15. Be3 Ndb5 16. Qd3 Nxc3 17. bxc3 Na6 18. Rfc1 Nc5 19. Qc4 b6 20. Rab1 Qd7 21. Bd4 Ne4 22. Qd3 Bxd4 23. Bxe4 Bc5 24. Bg2 Qa4 25. Qc2 Qc4 26. Qb3 Qe2 27. Rf1 Bd6 28. Rfe1 Qc4 29. Rec1 Qc5 30. Qb5 Qa3 31. Qb3 Qc5 32. Qb5 Qa3 33. Qb3 Qa5 34. a4 Qc5 35. c4 Qc7 36. Rc2 Bc5 37. Kh1 a5 38. Re1 Bb4 39. Re4 Qd6 40. Qe3 Qf6 41. Qd4 Qxd4 42. Rxd4 1/2-1/2

[Event "Polish Youth 1st League 2022"]
[Site "Lublin"]
[Date "2022.07.03"]
[Round "9.9"]
[White "Nagly, Wojciech"]
[Black "Duda, Szymon"]
[Result "1/2-1/2"]
[ECO "A48"]
[WhiteElo "1464"]
[BlackElo "1707"]
[Annotator "NA RC"]
[PlyCount "78"]
[EventDate "2022.06.24"]
[EventType "team-tourn"]
[EventCountry "POL"]
[SourceTitle "playchess.com"]
[Source "ChessBase"]
[SourceQuality "1"]
[TimeControl "40/5400+30:1800+30"]

1. d4 {[%emt 0:00:01]} Nf6 {[%emt 0:00:05]} 2. Nf3 {[%emt 0:00:06]} g6 {[%emt 0:00:04]} 3. e3 {[%emt 0:00:03]} Bg7 {[%emt 0:00:04]} 4. Be2 {[%emt 0:00:04]} O-O {[%emt 0:00:09]} 5. O-O {[%emt 0:00:04]} d6 {[%emt 0:02:03]} 6. c4 {[%emt 0:00:12]} Nbd7 {[%emt 0:00:11]} 7. Nc3 {[%emt 0:00:15]} e5 {[%emt 0:00:07]} 8. Qc2 {[%emt 0:00:04]} c6 {[%emt 0:00:38]} 9. b4 {[%emt 0:00:39]} Re8 {[%emt 0:01:56]} 10. a4 {[%emt 0:01:29]} Qe7 {[%emt 0:02:04]} 11. b5 {[%emt 0:02:57]} e4 {[%emt 0:02:33]} 12. Nd2 {[%emt 0:00:29]} Nf8 {[%emt 0:00:22]} 13. Ba3 {[%emt 0:02:26]} Bf5 {[%emt 0:01:23]} 14. Rab1 {[%emt 0:12:57]} h5 {[%emt 0:03:22]} 15. a5 {[%emt 0:06:36]} c5 {[%emt 0:07:17]} 16. dxc5 {[%emt 0:04:48]} dxc5 {[%emt 0:03:08]} 17. Rfd1 {[%emt 0:09:30]} N8d7 {[%emt 0:15:37]} 18. Nb3 {[%emt 0:10:28]} b6 {[%emt 0:07:58]} 19. Nd4 {[%emt 0:12:59]} Ng4 {[%emt 0:24:52]} 20. Nxf5 {[%emt 0:06:49]} gxf5 {[%emt 0:00:50]} 21. Nd5 {[%emt 0:01:03]} Qh4 {[%emt 0:08:10]} 22. Bxg4 {[%emt 0:02:53]} hxg4 {[%emt 0:00:31]} 23. g3 {[%emt 0:01:45]} Qh6 {[%emt 0:01:09]} 24. Nc7 {[%emt 0:17:39]} Ne5 {[%emt 0:01:19]} 25. Nxe8 {[%emt 0:00:38]} Rxe8 {[%emt 0:04:47]} 26. Bb2 {[%emt 0:01:26]} Nf3+ {[%emt 0:05:00]} 27. Kf1 {[%emt 0:00:09]} Qh3+ {[%emt 0:03:14]} 28. Ke2 {[%emt 0:00:07]} Bxb2 {[%emt 0:02:18]} 29. Qxb2 {[%emt 0:00:13]} Qg2 {[%emt 0:00:23]} 30. Qf6 {[%emt 0:01:32]} Nd4+ {[%emt 0:02:09]} 31. exd4 {[%emt 0:04:59]} Qf3+ {[%emt 0:00:25]} 32. Kd2 {[%emt 0:00:31]} e3+ {[%emt 0:01:34]} 33. fxe3 {[%emt 0:00:35]} Qxe3+ {[%emt 0:00:23]} 34. Kc2 {[%emt 0:00:07]} Qe2+ {[%emt 0:00:10]} 35. Rd2 {[%emt 0:00:44]} Qxc4+ {[%emt 0:00:07]} 36. Kd1 {[%emt 0:00:31]} Qf1+ {[%emt 0:00:46]} 37. Kc2 {[%emt 0:00:04]} Qc4+ {[%emt 0:00:08]} 38. Kd1 {[%emt 0:00:16]} Qf1+ {[%emt 0:00:33]} 39. Kc2 {[%emt 0:00:00]} Qc4+ {[%emt 0:00:34]} 1/2-1/2

[Event "Polish Youth 1st League 2022"]
[Site "Lublin"]
[Date "2022.07.03"]
[Round "9.10"]
[White "Wajda, Krzysztof"]
[Black "Gibala, Adam"]
[Result "1/2-1/2"]
[ECO "A53"]
[WhiteElo "1494"]
[BlackElo "1516"]
[Annotator "NA RC"]
[PlyCount "96"]
[EventDate "2022.06.24"]
[EventType "team-tourn"]
[EventCountry "POL"]
[SourceTitle "playchess.com"]
[Source "ChessBase"]
[SourceQuality "1"]
[TimeControl "40/5400+30:1800+30"]

1. d4 {[%emt 0:00:01]} Nf6 {[%emt 0:00:06]} 2. c4 {[%emt 0:00:10]} d6 {[%emt 0:00:03]} 3. Nf3 {[%emt 0:00:06]} Nbd7 {[%emt 0:00:05]} 4. e3 {[%emt 0:00:08]} e5 {[%emt 0:00:05]} 5. Nc3 {[%emt 0:01:01]} Be7 {[%emt 0:00:10]} 6. Be2 {[%emt 0:00:31]} O-O {[%emt 0:00:06]} 7. O-O {[%emt 0:00:04]} c6 {[%emt 0:00:08]} 8. dxe5 {[%emt 0:01:39]} dxe5 {[%emt 0:00:10]} 9. b3 {[%emt 0:00:38]} Qc7 {[%emt 0:01:54]} 10. Bb2 {[%emt 0:01:15]} a5 {[%emt 0:00:34]} 11. Qc2 {[%emt 0:01:56]} Re8 {[%emt 0:01:48]} 12. Rfd1 {[%emt 0:02:18]} Nc5 {[%emt 0:02:57]} 13. e4 {[%emt 0:05:59]} Bg4 {[%emt 0:03:33]} 14. a3 {[%emt 0:03:21]} Bxf3 {[%emt 0:03:33]} 15. Bxf3 {[%emt 0:00:12]} Qb6 {[%emt 0:03:32]} 16. Na4 {[%emt 0:11:37]} Nxa4 {[%emt 0:11:57]} 17. bxa4 {[%emt 0:00:05]} Bc5 {[%emt 0:00:18]} 18. Rd3 {[%emt 0:04:16]} Qc7 {[%emt 0:10:53]} 19. Rad1 {[%emt 0:01:59]} h6 {[%emt 0:07:57]} 20. Qb3 {[%emt 0:16:19]} b6 {[%emt 0:00:30]} 21. Bc3 {[%emt 0:00:41]} Qe7 {[%emt 0:00:24]} 22. Bb2 {[%emt 0:02:54]} Qe6 {[%emt 0:01:37]} 23. Qc2 {[%emt 0:03:18]} Kh7 {[%emt 0:02:18]} 24. Bc1 {[%emt 0:04:47]} Rac8 {[%emt 0:01:37]} 25. Be3 {[%emt 0:01:26]} Bxe3 {[%emt 0:01:37]} 26. Rxe3 {[%emt 0:00:34]} Rc7 {[%emt 0:06:43]} 27. Red3 {[%emt 0:03:52]} Nd7 {[%emt 0:02:48]} 28. Rd6 {[%emt 0:11:12]} Qe7 {[%emt 0:00:06]} 29. Bg4 {[%emt 0:02:23]} Nc5 {[%emt 0:00:07]} 30. Qe2 {[%emt 0:09:07]} g6 {[%emt 0:02:10]} 31. Qf3 {[%emt 0:00:37]} Kg7 {[%emt 0:01:04]} 32. g3 {[%emt 0:06:18]} Rh8 {[%emt 0:01:35]} 33. h4 {[%emt 0:00:25]} h5 {[%emt 0:00:01]} 34. Bh3 {[%emt 0:00:11]} Rf8 {[%emt 0:03:31]} 35. Qe3 {[%emt 0:01:46]} Nxa4 {[%emt 0:02:42]} 36. Qb3 {[%emt 0:02:19]} b5 {[%emt 0:05:33]} 37. cxb5 {[%emt 0:00:27]} cxb5 {[%emt 0:00:01]} 38. Rd7 {[%emt 0:02:39]} Rxd7 {[%emt 0:00:01]} 39. Rxd7 {[%emt 0:00:05]} Nc5 {[%emt 0:00:13]} 40. Rxe7 {[%emt 0:00:00]} Nxb3 {[%emt 0:00:00]} 41. Rb7 {[%emt 0:01:21]} Nd4 {[%emt 0:00:17]} 42. Bd7 {[%emt 0:00:33]} Kf6 {[%emt 0:00:22]} 43. Bxb5 {[%emt 0:00:20]} Rc8 {[%emt 0:00:39]} 44. a4 {[%emt 0:00:45]} Rc1+ {[%emt 0:00:29]} 45. Kg2 {[%emt 0:00:28]} Rb1 {[%emt 0:00:14]} 46. Rb6+ {[%emt 0:01:15]} Ke7 {[%emt 0:00:10]} 47. Rb7+ {[%emt 0:00:40]} Kf6 {[%emt 0:00:12]} 48. Rb6+ {[%emt 0:00:06]} Ke7 {[%emt 0:01:07]} 1/2-1/2